[Event "Early-Titled-Tuesday-Blitz-May-14-2024"]
[Site "Chess.com"]
[Date "2024.05.14"]
[Round "7"]
[White "Knightmare1014"]
[Black "VirtualCoach"]
[Result "0-1"]
[WhiteElo "2279"]
[BlackElo "2191"]
[TimeControl "180+1"]
[EndTime "9:21:14 PDT"]
[Termination "VirtualCoach won on time"]

1. e4 {[%clk 0:03:00.9]} 1... c5 {[%clk 0:02:58.7]} 2. Nf3 {[%clk 0:03:00.1]}
2... d6 {[%clk 0:02:58.7]} 3. Bb5+ {[%clk 0:02:59.6]} 3... Bd7 {[%clk
0:02:57.2]} 4. Bxd7+ {[%clk 0:02:59.4]} 4... Qxd7 {[%clk 0:02:57.6]} 5. c4
{[%clk 0:03:00.3]} 5... Nc6 {[%clk 0:02:55.9]} 6. Nc3 {[%clk 0:02:59.9]} 6... g6
{[%clk 0:02:55.1]} 7. d4 {[%clk 0:02:59.9]} 7... cxd4 {[%clk 0:02:50.4]} 8. Nxd4
{[%clk 0:03:00.8]} 8... Bg7 {[%clk 0:02:50.7]} 9. Be3 {[%clk 0:03:00.8]} 9...
Nf6 {[%clk 0:02:50.8]} 10. f3 {[%clk 0:03:01.1]} 10... Rc8 {[%clk 0:02:42.1]}
11. Nde2 {[%clk 0:02:58.2]} 11... O-O {[%clk 0:02:18.4]} 12. O-O {[%clk
0:02:57.3]} 12... Na5 {[%clk 0:02:15.9]} 13. b3 {[%clk 0:02:55.3]} 13... Nc6
{[%clk 0:02:09.8]} 14. Qc2 {[%clk 0:02:51]} 14... Ne8 {[%clk 0:02:06.5]} 15. Qd2
{[%clk 0:02:44.9]} 15... Nc7 {[%clk 0:02:05.7]} 16. c5 {[%clk 0:02:19.7]} 16...
Rcd8 {[%clk 0:02:00.1]} 17. Rad1 {[%clk 0:02:17.8]} 17... Qe6 {[%clk 0:01:47.2]}
18. Nd5 {[%clk 0:01:54.2]} 18... Qd7 {[%clk 0:01:28.7]} 19. Nxc7 {[%clk
0:01:11.7]} 19... Qxc7 {[%clk 0:01:24]} 20. Bf4 {[%clk 0:01:11.6]} 20... Ne5
{[%clk 0:01:17.7]} 21. cxd6 {[%clk 0:00:54.6]} 21... Rxd6 {[%clk 0:01:02.1]} 22.
Qe3 {[%clk 0:00:51.7]} 22... Rfd8 {[%clk 0:00:54.8]} 23. Rxd6 {[%clk 0:00:51]}
23... Qxd6 {[%clk 0:00:49.9]} 24. Nc3 {[%clk 0:00:46.8]} 24... Qd4 {[%clk
0:00:39.8]} 25. Qxd4 {[%clk 0:00:32.4]} 25... Rxd4 {[%clk 0:00:40.7]} 26. Nd5
{[%clk 0:00:31.4]} 26... e6 {[%clk 0:00:36.6]} 27. Rc1 {[%clk 0:00:21.3]} 27...
Nc6 {[%clk 0:00:29.8]} 28. Ne3 {[%clk 0:00:16.7]} 28... h6 {[%clk 0:00:22.5]}
29. Nc4 {[%clk 0:00:15]} 29... g5 {[%clk 0:00:21.1]} 30. Be3 {[%clk 0:00:15.4]}
30... Rd3 {[%clk 0:00:18.6]} 31. Kf2 {[%clk 0:00:15.7]} 31... a6 {[%clk
0:00:16.6]} 32. Ke2 {[%clk 0:00:15.8]} 32... Rd8 {[%clk 0:00:14.4]} 33. Rd1
{[%clk 0:00:15.1]} 33... Rc8 {[%clk 0:00:14]} 34. Nb6 {[%clk 0:00:14.2]} 34...
Rc7 {[%clk 0:00:13.8]} 35. Rd7 {[%clk 0:00:12.8]} 35... Rxd7 {[%clk 0:00:11.4]}
36. Nxd7 {[%clk 0:00:13.7]} 36... Nb4 {[%clk 0:00:11.8]} 37. a3 {[%clk
0:00:12.2]} 37... Nc2 {[%clk 0:00:11.5]} 38. Nc5 {[%clk 0:00:10.1]} 38... b5
{[%clk 0:00:09.9]} 39. Nxa6 {[%clk 0:00:08.9]} 39... Nxa3 {[%clk 0:00:09.2]} 40.
b4 {[%clk 0:00:08.3]} 40... Nc2 {[%clk 0:00:08.7]} 41. Bc5 {[%clk 0:00:07.7]}
41... Bc3 {[%clk 0:00:07.9]} 42. Nc7 {[%clk 0:00:06.9]} 42... Bxb4 {[%clk
0:00:06.9]} 43. Bxb4 {[%clk 0:00:06.6]} 43... Nxb4 {[%clk 0:00:07.8]} 44. Nxb5
{[%clk 0:00:06.8]} 44... Nc6 {[%clk 0:00:08.5]} 45. Ke3 {[%clk 0:00:06.7]} 45...
Kg7 {[%clk 0:00:09.2]} 46. Nc3 {[%clk 0:00:06.8]} 46... Kf6 {[%clk 0:00:09.3]}
47. g3 {[%clk 0:00:07.3]} 47... Ne5 {[%clk 0:00:09.5]} 48. f4 {[%clk 0:00:07.7]}
48... Ng4+ {[%clk 0:00:09.9]} 49. Kf3 {[%clk 0:00:07.7]} 49... Nxh2+ {[%clk
0:00:10]} 50. Kg2 {[%clk 0:00:07.7]} 50... Ng4 {[%clk 0:00:10]} 51. Kf3 {[%clk
0:00:07.4]} 51... h5 {[%clk 0:00:10]} 52. e5+ {[%clk 0:00:06.6]} 52... Kf5
{[%clk 0:00:09.2]} 53. Ne4 {[%clk 0:00:05.1]} 53... gxf4 {[%clk 0:00:08.3]} 54.
gxf4 {[%clk 0:00:04.8]} 54... f6 {[%clk 0:00:08.3]} 55. Ng3+ {[%clk 0:00:04.7]}
55... Kg6 {[%clk 0:00:08.5]} 56. exf6 {[%clk 0:00:04.7]} 56... Nxf6 {[%clk
0:00:09.4]} 57. Ke3 {[%clk 0:00:02.1]} 57... h4 {[%clk 0:00:09.7]} 58. Nh1
{[%clk 0:00:02.1]} 58... Kf5 {[%clk 0:00:10]} 59. Kf3 {[%clk 0:00:01.8]} 59...
Ng4 {[%clk 0:00:09.7]} 0-1

[Event "Early-Titled-Tuesday-Blitz-May-14-2024"]
[Site "Chess.com"]
[Date "2024.05.14"]
[Round "7"]
[White "Eloist"]
[Black "MiguelBestard1981"]
[Result "1/2-1/2"]
[WhiteElo "2439"]
[BlackElo "2326"]
[TimeControl "180+1"]
[EndTime "9:21:15 PDT"]
[Termination "Game drawn by stalemate"]

1. e4 {[%clk 0:03:00.9]} 1... e5 {[%clk 0:02:58.8]} 2. Bc4 {[%clk 0:03:00]} 2...
Nf6 {[%clk 0:02:57.2]} 3. d3 {[%clk 0:03:00]} 3... c6 {[%clk 0:02:56.3]} 4. Nf3
{[%clk 0:03:00.2]} 4... d5 {[%clk 0:02:43.5]} 5. Bb3 {[%clk 0:03:00.1]} 5... a5
{[%clk 0:02:41.2]} 6. a4 {[%clk 0:02:58.5]} 6... Bb4+ {[%clk 0:02:38.6]} 7. c3
{[%clk 0:02:58]} 7... Bd6 {[%clk 0:02:35.9]} 8. exd5 {[%clk 0:02:56.9]} 8...
cxd5 {[%clk 0:02:34.6]} 9. Bg5 {[%clk 0:02:56]} 9... Be6 {[%clk 0:02:24.3]} 10.
O-O {[%clk 0:02:55.3]} 10... O-O {[%clk 0:02:22.8]} 11. Re1 {[%clk 0:02:54.5]}
11... Nbd7 {[%clk 0:02:23]} 12. Na3 {[%clk 0:02:54.1]} 12... Ra6 {[%clk
0:02:21.4]} 13. Nb5 {[%clk 0:02:53.2]} 13... Bb8 {[%clk 0:02:20.9]} 14. h3
{[%clk 0:02:52.7]} 14... Re8 {[%clk 0:02:15.1]} 15. Bh4 {[%clk 0:02:50.9]} 15...
h6 {[%clk 0:01:41.3]} 16. Qd2 {[%clk 0:02:44.2]} 16... Rb6 {[%clk 0:01:35.6]}
17. Rad1 {[%clk 0:02:40.7]} 17... Nc5 {[%clk 0:01:30.3]} 18. Bc2 {[%clk
0:02:38.3]} 18... Bd7 {[%clk 0:01:11.1]} 19. Bg3 {[%clk 0:02:18.7]} 19... Rbe6
{[%clk 0:01:03.7]} 20. d4 {[%clk 0:02:11.7]} 20... exd4 {[%clk 0:01:01.4]} 21.
Bxb8 {[%clk 0:02:02.1]} 21... Rxe1+ {[%clk 0:00:58.4]} 22. Rxe1 {[%clk
0:02:01.5]} 22... Rxe1+ {[%clk 0:00:56.7]} 23. Qxe1 {[%clk 0:02:00.1]} 23...
Qxb8 {[%clk 0:00:53.4]} 24. Nfxd4 {[%clk 0:01:57.1]} 24... Qe8 {[%clk
0:00:51.5]} 25. Qxe8+ {[%clk 0:01:49.1]} 25... Bxe8 {[%clk 0:00:50.8]} 26. b4
{[%clk 0:01:31]} 26... axb4 {[%clk 0:00:43.3]} 27. cxb4 {[%clk 0:01:30.9]} 27...
Na6 {[%clk 0:00:43.6]} 28. Nd6 {[%clk 0:01:27.4]} 28... Nxb4 {[%clk 0:00:43.4]}
29. a5 {[%clk 0:00:56.1]} 29... Bc6 {[%clk 0:00:41.6]} 30. Bb3 {[%clk
0:00:37.7]} 30... Ne4 {[%clk 0:00:37.1]} 31. f3 {[%clk 0:00:31.2]} 31... Nc5
{[%clk 0:00:32]} 32. Bd1 {[%clk 0:00:30.8]} 32... Kf8 {[%clk 0:00:18.8]} 33. Kf2
{[%clk 0:00:31]} 33... g6 {[%clk 0:00:18.8]} 34. Ke3 {[%clk 0:00:30.5]} 34...
Ke7 {[%clk 0:00:19.1]} 35. Nc8+ {[%clk 0:00:30]} 35... Kd8 {[%clk 0:00:18.1]}
36. Nd6 {[%clk 0:00:28.4]} 36... Ke7 {[%clk 0:00:17]} 37. Nc8+ {[%clk
0:00:28.5]} 37... Kd7 {[%clk 0:00:16.7]} 38. Nb6+ {[%clk 0:00:28]} 38... Kc7
{[%clk 0:00:16.7]} 39. Kf4 {[%clk 0:00:22.3]} 39... Nbd3+ {[%clk 0:00:13.9]} 40.
Ke3 {[%clk 0:00:20.5]} 40... Ne5 {[%clk 0:00:14.2]} 41. Be2 {[%clk 0:00:17.3]}
41... Ne6 {[%clk 0:00:11]} 42. f4 {[%clk 0:00:14.9]} 42... Nd7 {[%clk
0:00:06.5]} 43. Bd3 {[%clk 0:00:13.1]} 43... Nxd4 {[%clk 0:00:03.8]} 44. Nxd7
{[%clk 0:00:12.4]} 44... Kxd7 {[%clk 0:00:03.2]} 45. Kxd4 {[%clk 0:00:12.7]}
45... Kd6 {[%clk 0:00:03.5]} 46. g4 {[%clk 0:00:12]} 46... g5 {[%clk 0:00:03]}
47. fxg5 {[%clk 0:00:10.4]} 47... hxg5 {[%clk 0:00:03.9]} 48. Bf5 {[%clk
0:00:09.5]} 48... f6 {[%clk 0:00:04]} 49. Bd3 {[%clk 0:00:07]} 49... Bd7 {[%clk
0:00:03.7]} 50. Bc2 {[%clk 0:00:06.7]} 50... Kc6 {[%clk 0:00:03.6]} 51. Bd3
{[%clk 0:00:06.5]} 51... Kd6 {[%clk 0:00:03.7]} 52. Bc2 {[%clk 0:00:06.8]} 52...
Bc6 {[%clk 0:00:03.8]} 53. Bd3 {[%clk 0:00:06.7]} 53... Ba4 {[%clk 0:00:03.9]}
54. Bb1 {[%clk 0:00:06.4]} 54... Bb5 {[%clk 0:00:04.4]} 55. Bf5 {[%clk
0:00:06.1]} 55... Bf1 {[%clk 0:00:04.5]} 56. Bc8 {[%clk 0:00:05.9]} 56... Bxh3
{[%clk 0:00:03.9]} 57. Bxb7 {[%clk 0:00:05.8]} 57... Bf1 {[%clk 0:00:02.9]} 58.
a6 {[%clk 0:00:05.7]} 58... Bxa6 {[%clk 0:00:02.2]} 59. Bxa6 {[%clk 0:00:05.5]}
59... Ke6 {[%clk 0:00:01.6]} 60. Bc8+ {[%clk 0:00:05.2]} 60... Kd6 {[%clk
0:00:01.7]} 61. Bf5 {[%clk 0:00:06.1]} 61... Kc6 {[%clk 0:00:01.3]} 62. Bg6
{[%clk 0:00:05.7]} 62... Kd6 {[%clk 0:00:01.5]} 63. Bf7 {[%clk 0:00:05.6]} 63...
Kc6 {[%clk 0:00:01.8]} 64. Bxd5+ {[%clk 0:00:05.5]} 64... Kd6 {[%clk 0:00:02.7]}
65. Be4 {[%clk 0:00:06]} 65... Ke6 {[%clk 0:00:02.8]} 66. Bf5+ {[%clk
0:00:06.9]} 66... Kf7 {[%clk 0:00:03.2]} 67. Kd5 {[%clk 0:00:07]} 67... Ke7
{[%clk 0:00:03.6]} 68. Kc6 {[%clk 0:00:07.1]} 68... Kf7 {[%clk 0:00:04.3]} 69.
Kd6 {[%clk 0:00:07.6]} 69... Kg7 {[%clk 0:00:04.3]} 70. Ke6 {[%clk 0:00:07.9]}
70... Kh6 {[%clk 0:00:04.4]} 71. Kxf6 {[%clk 0:00:08.1]} 1/2-1/2

[Event "Early-Titled-Tuesday-Blitz-May-14-2024"]
[Site "Chess.com"]
[Date "2024.05.14"]
[Round "7"]
[White "vaishali2001"]
[Black "dropstoneDP"]
[Result "1/2-1/2"]
[WhiteElo "2696"]
[BlackElo "2969"]
[TimeControl "180+1"]
[EndTime "9:21:18 PDT"]
[Termination "Game drawn by repetition"]

1. e4 {[%clk 0:03:00.9]} 1... e5 {[%clk 0:02:58.4]} 2. Nf3 {[%clk 0:03:00.5]}
2... Nf6 {[%clk 0:02:59]} 3. Nc3 {[%clk 0:03:00.1]} 3... Nc6 {[%clk 0:02:59]} 4.
h3 {[%clk 0:03:00.1]} 4... Bb4 {[%clk 0:02:57.5]} 5. Nd5 {[%clk 0:02:58.9]} 5...
Nxd5 {[%clk 0:02:56.8]} 6. exd5 {[%clk 0:02:59.8]} 6... e4 {[%clk 0:02:57.7]} 7.
dxc6 {[%clk 0:02:58.6]} 7... exf3 {[%clk 0:02:58.3]} 8. Qxf3 {[%clk 0:02:59.2]}
8... dxc6 {[%clk 0:02:58.7]} 9. Bc4 {[%clk 0:02:53.9]} 9... O-O {[%clk
0:02:57.1]} 10. O-O {[%clk 0:02:48.8]} 10... Qg5 {[%clk 0:02:57]} 11. d4 {[%clk
0:02:43]} 11... Qf5 {[%clk 0:02:56.8]} 12. Qe2 {[%clk 0:01:59.1]} 12... Bd7
{[%clk 0:02:47.9]} 13. Bd3 {[%clk 0:01:57.5]} 13... Qf6 {[%clk 0:02:38.9]} 14.
Qe4 {[%clk 0:01:48.3]} 14... g6 {[%clk 0:02:31]} 15. Qf4 {[%clk 0:01:45.8]}
15... Qxf4 {[%clk 0:02:29.6]} 16. Bxf4 {[%clk 0:01:46.7]} 16... Bd6 {[%clk
0:02:29.6]} 17. Bxd6 {[%clk 0:01:35.8]} 17... cxd6 {[%clk 0:02:30.5]} 18. Rfe1
{[%clk 0:01:36.1]} 18... Rfe8 {[%clk 0:02:30.6]} 19. f4 {[%clk 0:01:30.5]} 19...
h5 {[%clk 0:02:17.4]} 20. Kf2 {[%clk 0:01:25.5]} 20... Kg7 {[%clk 0:02:14.1]}
21. Kf3 {[%clk 0:01:20.1]} 21... h4 {[%clk 0:02:12]} 22. a3 {[%clk 0:00:55]}
22... Kf6 {[%clk 0:02:06.6]} 23. Re3 {[%clk 0:00:31.9]} 23... c5 {[%clk
0:01:57.6]} 24. d5 {[%clk 0:00:27.9]} 24... Rxe3+ {[%clk 0:01:52.6]} 25. Kxe3
{[%clk 0:00:28.8]} 25... Re8+ {[%clk 0:01:49.9]} 26. Kf3 {[%clk 0:00:28]} 26...
b5 {[%clk 0:01:46.7]} 27. b4 {[%clk 0:00:15.2]} 27... c4 {[%clk 0:01:46.6]} 28.
Be4 {[%clk 0:00:15.4]} 28... g5 {[%clk 0:01:30.4]} 29. c3 {[%clk 0:00:13.1]}
29... g4+ {[%clk 0:01:27]} 30. hxg4 {[%clk 0:00:14]} 30... Bxg4+ {[%clk
0:01:27.4]} 31. Kxg4 {[%clk 0:00:13.7]} 31... Rxe4 {[%clk 0:01:28]} 32. Rh1
{[%clk 0:00:08.1]} 32... Re2 {[%clk 0:01:20]} 33. Kf3 {[%clk 0:00:04.4]} 33...
Rc2 {[%clk 0:01:16.7]} 34. Rxh4 {[%clk 0:00:04.3]} 34... Rxc3+ {[%clk
0:01:16.4]} 35. Ke4 {[%clk 0:00:05]} 35... Rg3 {[%clk 0:01:06.1]} 36. Rh8 {[%clk
0:00:03.6]} 36... Rxg2 {[%clk 0:01:03.6]} 37. Rd8 {[%clk 0:00:03.8]} 37... Re2+
{[%clk 0:00:47]} 38. Kd4 {[%clk 0:00:03.5]} 38... Rd2+ {[%clk 0:00:45.3]} 39.
Ke4 {[%clk 0:00:03.6]} 39... Ke7 {[%clk 0:00:40.8]} 40. Ra8 {[%clk 0:00:03.7]}
40... c3 {[%clk 0:00:40.6]} 41. Rxa7+ {[%clk 0:00:03.7]} 41... Kd8 {[%clk
0:00:41.2]} 42. Ra6 {[%clk 0:00:03.9]} 42... Kd7 {[%clk 0:00:33]} 43. Rc6 {[%clk
0:00:02.6]} 43... c2 {[%clk 0:00:31.9]} 44. Rc3 {[%clk 0:00:02.7]} 44... f5+
{[%clk 0:00:18.8]} 45. Kxf5 {[%clk 0:00:02.6]} 45... Rxd5+ {[%clk 0:00:19.1]}
46. Ke4 {[%clk 0:00:03.4]} 46... Rd2 {[%clk 0:00:19.6]} 47. Ke3 {[%clk 0:00:04]}
47... Rh2 {[%clk 0:00:19.8]} 48. Kd3 {[%clk 0:00:04.3]} 48... Rf2 {[%clk
0:00:17.1]} 49. Rxc2 {[%clk 0:00:04.3]} 49... Rxf4 {[%clk 0:00:17.2]} 50. Rc3
{[%clk 0:00:04.1]} 50... Ke6 {[%clk 0:00:10.8]} 51. Kc2 {[%clk 0:00:03.8]} 51...
Kd5 {[%clk 0:00:05.3]} 52. Kb3 {[%clk 0:00:03.8]} 52... Rf1 {[%clk 0:00:05.7]}
53. a4 {[%clk 0:00:03.9]} 53... Rb1+ {[%clk 0:00:05.8]} 54. Kc2 {[%clk
0:00:03.4]} 54... Rxb4 {[%clk 0:00:06]} 55. axb5 {[%clk 0:00:04.1]} 55... Rxb5
{[%clk 0:00:06.5]} 56. Rh3 {[%clk 0:00:04.3]} 56... Kc4 {[%clk 0:00:05.5]} 57.
Rh4+ {[%clk 0:00:04.4]} 57... Kc5 {[%clk 0:00:05.9]} 58. Rh5+ {[%clk 0:00:04.4]}
58... d5 {[%clk 0:00:06.4]} 59. Rh4 {[%clk 0:00:05]} 59... Ra5 {[%clk
0:00:05.6]} 60. Rg4 {[%clk 0:00:05.2]} 60... Ra2+ {[%clk 0:00:05.3]} 61. Kc3
{[%clk 0:00:05.2]} 61... Ra3+ {[%clk 0:00:04.5]} 62. Kc2 {[%clk 0:00:05.6]}
62... Rf3 {[%clk 0:00:05]} 63. Kd2 {[%clk 0:00:05.9]} 63... Rh3 {[%clk
0:00:03.7]} 64. Rf4 {[%clk 0:00:05.3]} 64... d4 {[%clk 0:00:03.9]} 65. Rf8
{[%clk 0:00:05.4]} 65... Rh2+ {[%clk 0:00:03.6]} 66. Kd3 {[%clk 0:00:05.6]}
66... Rh3+ {[%clk 0:00:04.5]} 67. Kd2 {[%clk 0:00:06.2]} 67... Rh2+ {[%clk
0:00:05.2]} 68. Kd3 {[%clk 0:00:06.9]} 68... Rh3+ {[%clk 0:00:06.1]} 69. Kd2
{[%clk 0:00:07.6]} 1/2-1/2

[Event "Early-Titled-Tuesday-Blitz-May-14-2024"]
[Site "Chess.com"]
[Date "2024.05.14"]
[Round "7"]
[White "praveenb2002"]
[Black "ravengelic"]
[Result "0-1"]
[WhiteElo "2853"]
[BlackElo "2709"]
[TimeControl "180+1"]
[EndTime "9:21:38 PDT"]
[Termination "ravengelic won by resignation"]

1. c4 {[%clk 0:03:00.9]} 1... Nf6 {[%clk 0:02:59.5]} 2. Nc3 {[%clk 0:02:59.6]}
2... g6 {[%clk 0:03:00.4]} 3. e4 {[%clk 0:02:56.6]} 3... d6 {[%clk 0:02:59.9]}
4. d4 {[%clk 0:02:54.7]} 4... Bg7 {[%clk 0:03:00.5]} 5. g3 {[%clk 0:02:54.5]}
5... O-O {[%clk 0:03:00]} 6. Bg2 {[%clk 0:02:54.3]} 6... c5 {[%clk 0:02:51.3]}
7. d5 {[%clk 0:02:51.4]} 7... e6 {[%clk 0:02:49]} 8. Nge2 {[%clk 0:02:51.6]}
8... exd5 {[%clk 0:02:49.4]} 9. cxd5 {[%clk 0:02:49.1]} 9... Re8 {[%clk
0:02:40.5]} 10. O-O {[%clk 0:02:44.4]} 10... a6 {[%clk 0:02:39.9]} 11. a4 {[%clk
0:02:42.6]} 11... Nbd7 {[%clk 0:02:37.9]} 12. h3 {[%clk 0:02:42.6]} 12... c4
{[%clk 0:02:38.3]} 13. Be3 {[%clk 0:02:37.6]} 13... Ne5 {[%clk 0:02:31]} 14. a5
{[%clk 0:02:30.3]} 14... h5 {[%clk 0:02:22.4]} 15. b3 {[%clk 0:02:27.6]} 15...
cxb3 {[%clk 0:01:58.6]} 16. Qxb3 {[%clk 0:02:28.5]} 16... Nfd7 {[%clk
0:01:46.8]} 17. Qb4 {[%clk 0:02:19.1]} 17... Nd3 {[%clk 0:01:35.6]} 18. Qc4
{[%clk 0:02:11.5]} 18... N3c5 {[%clk 0:01:29.6]} 19. f4 {[%clk 0:02:08.9]} 19...
Qe7 {[%clk 0:01:27.6]} 20. Bd4 {[%clk 0:01:59.7]} 20... b5 {[%clk 0:01:27.6]}
21. axb6 {[%clk 0:01:55.1]} 21... Nxb6 {[%clk 0:01:27.7]} 22. Qb4 {[%clk
0:01:54.1]} 22... Nbd7 {[%clk 0:01:24.3]} 23. Bxg7 {[%clk 0:01:43.7]} 23... Kxg7
{[%clk 0:01:25.2]} 24. Nd4 {[%clk 0:01:41.8]} 24... Rb8 {[%clk 0:01:14.5]} 25.
Qc4 {[%clk 0:01:41.7]} 25... Qf6 {[%clk 0:01:12.6]} 26. Nc6 {[%clk 0:01:36.7]}
26... Rb2 {[%clk 0:01:12.8]} 27. Ra2 {[%clk 0:01:14.3]} 27... Nb6 {[%clk
0:01:05.3]} 28. Qd4 {[%clk 0:01:10.3]} 28... Qxd4+ {[%clk 0:01:05.6]} 29. Nxd4
{[%clk 0:01:11.2]} 29... Rxa2 {[%clk 0:01:06.5]} 30. Nxa2 {[%clk 0:01:11.4]}
30... Nc4 {[%clk 0:01:07.4]} 31. Nc3 {[%clk 0:01:04.7]} 31... Ne3 {[%clk
0:01:07.2]} 32. Re1 {[%clk 0:01:00.1]} 32... Nxg2 {[%clk 0:00:59.1]} 33. Kxg2
{[%clk 0:01:01]} 33... h4 {[%clk 0:00:58.9]} 34. gxh4 {[%clk 0:00:59.8]} 34...
Nd3 {[%clk 0:00:59.1]} 35. Rf1 {[%clk 0:00:58.2]} 35... Nc5 {[%clk 0:00:56.6]}
36. Kf3 {[%clk 0:00:56.5]} 36... Bxh3 {[%clk 0:00:56.3]} 37. Re1 {[%clk
0:00:51.9]} 37... f5 {[%clk 0:00:55.7]} 38. e5 {[%clk 0:00:39.6]} 38... Bg4+
{[%clk 0:00:54.4]} 39. Kg3 {[%clk 0:00:36.7]} 39... Nd3 {[%clk 0:00:53.7]} 40.
Rb1 {[%clk 0:00:26]} 40... dxe5 {[%clk 0:00:50.9]} 41. Rb7+ {[%clk 0:00:23.3]}
41... Kh6 {[%clk 0:00:50.5]} 42. fxe5 {[%clk 0:00:17.7]} 42... Rxe5 {[%clk
0:00:51.4]} 43. Ne6 {[%clk 0:00:11.5]} 43... Re3+ {[%clk 0:00:51]} 44. Kh2
{[%clk 0:00:11.9]} 44... Ne5 {[%clk 0:00:45.4]} 45. Ng5 {[%clk 0:00:10.5]} 45...
Nf3+ {[%clk 0:00:38.9]} 46. Nxf3 {[%clk 0:00:07.1]} 46... Bxf3 {[%clk
0:00:26.5]} 47. Rc7 {[%clk 0:00:07.3]} 47... Rd3 {[%clk 0:00:23.6]} 48. Rc5
{[%clk 0:00:03.3]} 48... Be4 {[%clk 0:00:22.9]} 49. Nxe4 {[%clk 0:00:02.3]}
49... fxe4 {[%clk 0:00:23.3]} 50. Rc4 {[%clk 0:00:03]} 50... e3 {[%clk
0:00:21.9]} 51. Re4 {[%clk 0:00:03.2]} 51... Rd2+ {[%clk 0:00:17.5]} 52. Kg3
{[%clk 0:00:03.5]} 52... e2 {[%clk 0:00:18.4]} 53. d6 {[%clk 0:00:03.6]} 53...
Rxd6 {[%clk 0:00:17.8]} 54. Rxe2 {[%clk 0:00:03.6]} 54... a5 {[%clk 0:00:17.8]}
55. Re8 {[%clk 0:00:02.7]} 55... Ra6 {[%clk 0:00:17.7]} 56. Re3 {[%clk
0:00:02.2]} 56... a4 {[%clk 0:00:18.1]} 57. Ra3 {[%clk 0:00:02.9]} 57... Kh5
{[%clk 0:00:18.4]} 58. Kh3 {[%clk 0:00:03.4]} 58... Ra5 {[%clk 0:00:18.8]} 59.
Kg3 {[%clk 0:00:03.8]} 59... Kh6 {[%clk 0:00:19.4]} 60. Kg4 {[%clk 0:00:04.2]}
60... Kg7 {[%clk 0:00:19.9]} 61. Kf4 {[%clk 0:00:04.2]} 61... Kf6 {[%clk
0:00:20.4]} 62. Ke4 {[%clk 0:00:03]} 62... Ke6 {[%clk 0:00:21]} 63. Kd4 {[%clk
0:00:02.6]} 63... Rh5 {[%clk 0:00:20.8]} 64. Re3+ {[%clk 0:00:01.8]} 64... Kf5
{[%clk 0:00:19.2]} 65. Re5+ {[%clk 0:00:01.3]} 65... Kg4 {[%clk 0:00:18.9]} 66.
Re4+ {[%clk 0:00:01.9]} 66... Kh3 {[%clk 0:00:19.2]} 67. Kd3 {[%clk 0:00:01.7]}
67... Rxh4 {[%clk 0:00:18.9]} 68. Re6 {[%clk 0:00:02.4]} 68... g5 {[%clk
0:00:19]} 69. Ra6 {[%clk 0:00:02.3]} 69... Rf4 {[%clk 0:00:18]} 70. Ke3 {[%clk
0:00:02.7]} 70... Rb4 {[%clk 0:00:17.1]} 71. Kf3 {[%clk 0:00:03]} 71... g4+
{[%clk 0:00:17.2]} 72. Kf2 {[%clk 0:00:03.6]} 72... g3+ {[%clk 0:00:17]} 73. Kf3
{[%clk 0:00:02.7]} 73... Rb3+ {[%clk 0:00:17.3]} 74. Ke2 {[%clk 0:00:02.8]}
74... a3 {[%clk 0:00:17.4]} 75. Ra8 {[%clk 0:00:02.4]} 75... Kg2 {[%clk
0:00:17.7]} 76. Ra7 {[%clk 0:00:02.6]} 76... Kg1 {[%clk 0:00:18.1]} 77. Ra8
{[%clk 0:00:02.7]} 77... g2 {[%clk 0:00:18.7]} 78. Rc8 {[%clk 0:00:01.4]} 78...
Rb2+ {[%clk 0:00:18.5]} 79. Kf3 {[%clk 0:00:01.3]} 79... a2 {[%clk 0:00:18.6]}
80. Rc1+ {[%clk 0:00:01.1]} 80... Kh2 {[%clk 0:00:18.4]} 81. Ra1 {[%clk
0:00:01.8]} 81... g1=Q {[%clk 0:00:17.2]} 0-1